Workbook

Sheet Лист2
D2: Таблица длинная…
A4: маленький допстолб | B4: Шифр | D4: Название | E4: Ед. изм. | F4: Кол-во | G4: Цена | H4: Стоимость
A5: =IF(IFERROR(MATCH("*",INDEX(база!$A$1:$A$18752,MATCH(VLOOKUP("我我",B$5:B5,1,1),база!$A$1:$A$18752,)+1):'база'!$A$18752,),MATCH("我我",база!C:C,1)-MATCH("我我",база!A:A,1)+1)>=(ROW()-MATCH("我我",B$1:B5,1)+1),IFERROR(MATCH(B5,база!$A$1:$A$18752,),A4+1),"") -> 4 | B5: 2-36 | C5: =IFERROR(INDEX(база!B$1:B$19371,$A5)&"","") ->  | D5: =IFERROR(INDEX(база!C$1:C$19371,$A5)&"","") -> Раб 2-36 | E5: =IFERROR(INDEX(база!D$1:D$19371,$A5)&"","") -> шт. | F5: =IFERROR(INDEX(база!E$1:E$19371,$A5),"") -> 1 | G5: =IFERROR(INDEX(база!F$1:F$19371,$A5),"") -> 42 | H5: =IFERROR(INDEX(база!G$1:G$19371,$A5),"") -> 42
A6: =IF(IFERROR(MATCH("*",INDEX(база!$A$1:$A$18752,MATCH(VLOOKUP("我我",B$5:B6,1,1),база!$A$1:$A$18752,)+1):'база'!$A$18752,),MATCH("我我",база!C:C,1)-MATCH("我我",база!A:A,1)+1)>=(ROW()-MATCH("我我",B$1:B6,1)+1),IFERROR(MATCH(B6,база!$A$1:$A$18752,),A5+1),"") -> 5 | C6: =IFERROR(INDEX(база!B$1:B$19371,$A6)&"","") -> 309 | D6: =IFERROR(INDEX(база!C$1:C$19371,$A6)&"","") -> материал | E6: =IFERROR(INDEX(база!D$1:D$19371,$A6)&"","") -> шт. | F6: =IFERROR(INDEX(база!E$1:E$19371,$A6),"") -> 0.08 | G6: =IFERROR(INDEX(база!F$1:F$19371,$A6),"") -> 494 | H6: =IFERROR(INDEX(база!G$1:G$19371,$A6),"") -> 39.52
A7: =IF(IFERROR(MATCH("*",INDEX(база!$A$1:$A$18752,MATCH(VLOOKUP("我我",B$5:B7,1,1),база!$A$1:$A$18752,)+1):'база'!$A$18752,),MATCH("我我",база!C:C,1)-MATCH("我我",база!A:A,1)+1)>=(ROW()-MATCH("我我",B$1:B7,1)+1),IFERROR(MATCH(B7,база!$A$1:$A$18752,),A6+1),"") -> 7 | B7: 2-37 | C7: =IFERROR(INDEX(база!B$1:B$19371,$A7)&"","") ->  | D7: =IFERROR(INDEX(база!C$1:C$19371,$A7)&"","") -> Раб 2-37 | E7: =IFERROR(INDEX(база!D$1:D$19371,$A7)&"","") -> шт. | F7: =IFERROR(INDEX(база!E$1:E$19371,$A7),"") -> 1 | G7: =IFERROR(INDEX(база!F$1:F$19371,$A7),"") -> 78 | H7: =IFERROR(INDEX(база!G$1:G$19371,$A7),"") -> 78
A8: =IF(IFERROR(MATCH("*",INDEX(база!$A$1:$A$18752,MATCH(VLOOKUP("我我",B$5:B8,1,1),база!$A$1:$A$18752,)+1):'база'!$A$18752,),MATCH("我我",база!C:C,1)-MATCH("我我",база!A:A,1)+1)>=(ROW()-MATCH("我我",B$1:B8,1)+1),IFERROR(MATCH(B8,база!$A$1:$A$18752,),A7+1),"") -> 8 | C8: =IFERROR(INDEX(база!B$1:B$19371,$A8)&"","") -> 309 | D8: =IFERROR(INDEX(база!C$1:C$19371,$A8)&"","") -> материал | E8: =IFERROR(INDEX(база!D$1:D$19371,$A8)&"","") -> шт. | F8: =IFERROR(INDEX(база!E$1:E$19371,$A8),"") -> 0.12 | G8: =IFERROR(INDEX(база!F$1:F$19371,$A8),"") -> 494 | H8: =IFERROR(INDEX(база!G$1:G$19371,$A8),"") -> 59.28
A9: =IF(IFERROR(MATCH("*",INDEX(база!$A$1:$A$18752,MATCH(VLOOKUP("我我",B$5:B9,1,1),база!$A$1:$A$18752,)+1):'база'!$A$18752,),MATCH("我我",база!C:C,1)-MATCH("我我",база!A:A,1)+1)>=(ROW()-MATCH("我我",B$1:B9,1)+1),IFERROR(MATCH(B9,база!$A$1:$A$18752,),A8+1),"") -> 24 | B9: 2-45 | C9: =IFERROR(INDEX(база!B$1:B$19371,$A9)&"","") ->  | D9: =IFERROR(INDEX(база!C$1:C$19371,$A9)&"","") -> Раб 2-45 | E9: =IFERROR(INDEX(база!D$1:D$19371,$A9)&"","") -> шт. | F9: =IFERROR(INDEX(база!E$1:E$19371,$A9),"") -> 1 | G9: =IFERROR(INDEX(база!F$1:F$19371,$A9),"") -> 156 | H9: =IFERROR(INDEX(база!G$1:G$19371,$A9),"") -> 156
A10: =IF(IFERROR(MATCH("*",INDEX(база!$A$1:$A$18752,MATCH(VLOOKUP("我我",B$5:B10,1,1),база!$A$1:$A$18752,)+1):'база'!$A$18752,),MATCH("我我",база!C:C,1)-MATCH("我我",база!A:A,1)+1)>=(ROW()-MATCH("我我",B$1:B10,1)+1),IFERROR(MATCH(B10,база!$A$1:$A$18752,),A9+1),"") -> 25 | C10: =IFERROR(INDEX(база!B$1:B$19371,$A10)&"","") -> 190 | D10: =IFERROR(INDEX(база!C$1:C$19371,$A10)&"","") -> материал | E10: =IFERROR(INDEX(база!D$1:D$19371,$A10)&"","") -> шт. | F10: =IFERROR(INDEX(база!E$1:E$19371,$A10),"") -> 1 | G10: =IFERROR(INDEX(база!F$1:F$19371,$A10),"") -> 488 | H10: =IFERROR(INDEX(база!G$1:G$19371,$A10),"") -> 488
A11: =IF(IFERROR(MATCH("*",INDEX(база!$A$1:$A$18752,MATCH(VLOOKUP("我我",B$5:B11,1,1),база!$A$1:$A$18752,)+1):'база'!$A$18752,),MATCH("我我",база!C:C,1)-MATCH("我我",база!A:A,1)+1)>=(ROW()-MATCH("我我",B$1:B11,1)+1),IFERROR(MATCH(B11,база!$A$1:$A$18752,),A10+1),"") -> 26 | B11: 2-46 | C11: =IFERROR(INDEX(база!B$1:B$19371,$A11)&"","") ->  | D11: =IFERROR(INDEX(база!C$1:C$19371,$A11)&"","") -> Раб 2-46 | E11: =IFERROR(INDEX(база!D$1:D$19371,$A11)&"","") -> шт. | F11: =IFERROR(INDEX(база!E$1:E$19371,$A11),"") -> 1 | G11: =IFERROR(INDEX(база!F$1:F$19371,$A11),"") -> 169 | H11: =IFERROR(INDEX(база!G$1:G$19371,$A11),"") -> 169
A12: =IF(IFERROR(MATCH("*",INDEX(база!$A$1:$A$18752,MATCH(VLOOKUP("我我",B$5:B12,1,1),база!$A$1:$A$18752,)+1):'база'!$A$18752,),MATCH("我我",база!C:C,1)-MATCH("我我",база!A:A,1)+1)>=(ROW()-MATCH("我我",B$1:B12,1)+1),IFERROR(MATCH(B12,база!$A$1:$A$18752,),A11+1),"") -> 27 | C12: =IFERROR(INDEX(база!B$1:B$19371,$A12)&"","") -> 190 | D12: =IFERROR(INDEX(база!C$1:C$19371,$A12)&"","") -> материал | E12: =IFERROR(INDEX(база!D$1:D$19371,$A12)&"","") -> шт. | F12: =IFERROR(INDEX(база!E$1:E$19371,$A12),"") -> 1.5 | G12: =IFERROR(INDEX(база!F$1:F$19371,$A12),"") -> 488 | H12: =IFERROR(INDEX(база!G$1:G$19371,$A12),"") -> 732
A13: =IF(IFERROR(MATCH("*",INDEX(база!$A$1:$A$18752,MATCH(VLOOKUP("我我",B$5:B13,1,1),база!$A$1:$A$18752,)+1):'база'!$A$18752,),MATCH("我我",база!C:C,1)-MATCH("我我",база!A:A,1)+1)>=(ROW()-MATCH("我我",B$1:B13,1)+1),IFERROR(MATCH(B13,база!$A$1:$A$18752,),A12+1),"") -> 28 | B13: 2-47 | C13: =IFERROR(INDEX(база!B$1:B$19371,$A13)&"","") ->  | D13: =IFERROR(INDEX(база!C$1:C$19371,$A13)&"","") -> Раб 2-47 | E13: =IFERROR(INDEX(база!D$1:D$19371,$A13)&"","") -> шт. | F13: =IFERROR(INDEX(база!E$1:E$19371,$A13),"") -> 1 | G13: =IFERROR(INDEX(база!F$1:F$19371,$A13),"") -> 208 | H13: =IFERROR(INDEX(база!G$1:G$19371,$A13),"") -> 208
A14: =IF(IFERROR(MATCH("*",INDEX(база!$A$1:$A$18752,MATCH(VLOOKUP("我我",B$5:B14,1,1),база!$A$1:$A$18752,)+1):'база'!$A$18752,),MATCH("我我",база!C:C,1)-MATCH("我我",база!A:A,1)+1)>=(ROW()-MATCH("我我",B$1:B14,1)+1),IFERROR(MATCH(B14,база!$A$1:$A$18752,),A13+1),"") -> 29 | C14: =IFERROR(INDEX(база!B$1:B$19371,$A14)&"","") -> 190 | D14: =IFERROR(INDEX(база!C$1:C$19371,$A14)&"","") -> материал | E14: =IFERROR(INDEX(база!D$1:D$19371,$A14)&"","") -> шт. | F14: =IFERROR(INDEX(база!E$1:E$19371,$A14),"") -> 1.8 | G14: =IFERROR(INDEX(база!F$1:F$19371,$A14),"") -> 488 | H14: =IFERROR(INDEX(база!G$1:G$19371,$A14),"") -> 878.4
A15: =IF(IFERROR(MATCH("*",INDEX(база!$A$1:$A$18752,MATCH(VLOOKUP("我我",B$5:B15,1,1),база!$A$1:$A$18752,)+1):'база'!$A$18752,),MATCH("我我",база!C:C,1)-MATCH("我我",база!A:A,1)+1)>=(ROW()-MATCH("我我",B$1:B15,1)+1),IFERROR(MATCH(B15,база!$A$1:$A$18752,),A14+1),"") -> 15 | B15: 2-41 | C15: =IFERROR(INDEX(база!B$1:B$19371,$A15)&"","") ->  | D15: =IFERROR(INDEX(база!C$1:C$19371,$A15)&"","") -> Раб 2-41 | E15: =IFERROR(INDEX(база!D$1:D$19371,$A15)&"","") -> шт. | F15: =IFERROR(INDEX(база!E$1:E$19371,$A15),"") -> 1 | G15: =IFERROR(INDEX(база!F$1:F$19371,$A15),"") -> 169 | H15: =IFERROR(INDEX(база!G$1:G$19371,$A15),"") -> 169
A16: =IF(IFERROR(MATCH("*",INDEX(база!$A$1:$A$18752,MATCH(VLOOKUP("我我",B$5:B16,1,1),база!$A$1:$A$18752,)+1):'база'!$A$18752,),MATCH("我我",база!C:C,1)-MATCH("我我",база!A:A,1)+1)>=(ROW()-MATCH("我我",B$1:B16,1)+1),IFERROR(MATCH(B16,база!$A$1:$A$18752,),A15+1),"") -> 16 | C16: =IFERROR(INDEX(база!B$1:B$19371,$A16)&"","") -> 190 | D16: =IFERROR(INDEX(база!C$1:C$19371,$A16)&"","") -> материал | E16: =IFERROR(INDEX(база!D$1:D$19371,$A16)&"","") -> шт. | F16: =IFERROR(INDEX(база!E$1:E$19371,$A16),"") -> 0.2 | G16: =IFERROR(INDEX(база!F$1:F$19371,$A16),"") -> 488 | H16: =IFERROR(INDEX(база!G$1:G$19371,$A16),"") -> 97.6
D18: работа: | H18: =SUMIF(B5:B16,"*",H5:H16) -> 822
D19: материалы: | H19: =SUM(H5:H16)-H18 -> 2294.8
D20: всего: | H20: =SUM(H18:H19) -> 3116.8

Sheet база
C2: отрывок базы данных
A4: 2-36 | C4: Раб 2-36 | D4: шт. | E4: 1 | F4: 42 | G4: =E4*F4 -> 42
B5: 309 | C5: материал | D5: шт. | E5: =E4*0.08 -> 0.08 | F5: 494 | G5: 39.52
B6: 1311 | C6: материал | D6: шт. | E6: =E5*0.08 -> 0.0064 | F6: 494 | G6: =E6*F6 -> 3.1616
A7: 2-37 | C7: Раб 2-37 | D7: шт. | E7: 1 | F7: 78 | G7: 78
B8: 309 | C8: материал | D8: шт. | E8: =E7*0.12 -> 0.12 | F8: 494 | G8: 59.28
A9: 2-38 | C9: Раб 2-38 | D9: шт. | E9: 1 | F9: 110 | G9: 110
B10: 190 | C10: материал | D10: шт. | E10: =E9*0.15 -> 0.15 | F10: 488 | G10: 73.2
A11: 2-39 | C11: Раб 2-39 | D11: шт. | E11: 1 | F11: 78 | G11: 78
B12: 309 | C12: материал | D12: шт. | E12: =E11*0.12 -> 0.12 | F12: 494 | G12: 59.28
A13: 2-40 | C13: Раб 2-40 | D13: шт. | E13: 1 | F13: 109 | G13: 109
B14: 309 | C14: материал | D14: шт. | E14: =E13*0.15 -> 0.15 | F14: 494 | G14: 74.1
A15: 2-41 | C15: Раб 2-41 | D15: шт. | E15: 1 | F15: 169 | G15: 169
B16: 190 | C16: материал | D16: шт. | E16: =E15*0.2 -> 0.2 | F16: 488 | G16: 97.6
A17: 2-42 | C17: Раб 2-42 | D17: шт. | E17: 1 | F17: 65 | G17: 65
B18: 190 | C18: материал | D18: шт. | E18: =E17*0.2 -> 0.2 | F18: 488 | G18: 97.6
A19: 2-43 | C19: Раб 2-43 | D19: шт. | E19: 1 | F19: 130 | G19: 130
B20: 190 | C20: материал | D20: шт. | E20: =E19*0.3 -> 0.3 | F20: 488 | G20: 146.4
A21: 2-44 | C21: Раб 2-44 | D21: шт. | E21: 1 | F21: 156 | G21: 156
B22: 1119 | C22: материал | D22: шт. | E22: =E21*1.8 -> 1.8 | F22: 488 | G22: =E22*F22 -> 878.4
B23: 190 | C23: материал | D23: шт. | E23: =E21*0.35 -> 0.35 | F23: 488 | G23: 170.8
A24: 2-45 | C24: Раб 2-45 | D24: шт. | E24: 1 | F24: 156 | G24: 156
B25: 190 | C25: материал | D25: шт. | E25: =E24 -> 1 | F25: 488 | G25: 488
A26: 2-46 | C26: Раб 2-46 | D26: шт. | E26: 1 | F26: 169 | G26: 169
B27: 190 | C27: материал | D27: шт. | E27: =E26*1.5 -> 1.5 | F27: 488 | G27: 732
A28: 2-47 | C28: Раб 2-47 | D28: шт. | E28: 1 | F28: 208 | G28: 208
B29: 190 | C29: материал | D29: шт. | E29: =E28*1.8 -> 1.8 | F29: 488 | G29: 878.4
A30: 2-48 | C30: Раб 2-48 | D30: шт. | E30: 1 | F30: 168 | G30: 168
B31: 190 | C31: материал | D31: шт. | E31: =E30*1.8 -> 1.8 | F31: 488 | G31: 878.4
A32: 2-49 | C32: Раб 2-49 | D32: шт. | E32: 1 | F32: 208 | G32: 208
B33: 190 | C33: материал | D33: шт. | E33: =E32*2.5 -> 2.5 | F33: 488 | G33: 1220
A34: 2-50 | C34: Раб 2-50 | D34: шт. | E34: 1 | F34: 273 | G34: 273
